[Event "44th Chess Olympiad Open 2022"]
[Site "Chennai"]
[Date "2022.08.02"]
[Round "5.7"]
[White "Maghsoodloo, Parham"]
[Black "Yilmaz, Mustafa"]
[Result "1/2-1/2"]
[WhiteElo "2701"]
[BlackElo "2634"]
[Annotator "TA"]
[PlyCount "114"]
[EventDate "2022.??.??"]
[TimeControl "60"]

{[%evp 14,114,7,0,0,0,52,47,49,38,35,15,24,23,30,19,32,29,27,36,28,27,32,34,34,
32,17,35,81,86,80,49,51,57,108,83,64,0,0,0,0,0,0,0,0,0,0,0,0,0,0,0,0,0,77,73,
73,40,59,68,62,33,23,18,51,15,78,71,75,69,74,64,76,77,90,91,73,83,86,87,80,82,
77,81,102,39,43,37,83,8,70,58,478,379,371,367,335,309,0,0,0,0,29989]} 1. e4 {
[%emt 0:00:02]} c5 {[%emt 0:00:06]} 2. Nf3 {[%emt 0:00:05]} d6 {[%emt 0:00:04]}
3. d4 {[%emt 0:00:05]} cxd4 {[%emt 0:00:05]} 4. Nxd4 {[%emt 0:00:05]} Nf6 {
[%emt 0:00:04]} 5. Nc3 {[%emt 0:00:04]} a6 {[%emt 0:00:03]} 6. Bg5 {[%emt 0:00:
00]} e6 {[%emt 0:00:27]} 7. f4 {[%emt 0:00:06]} Qb6 {[%emt 0:00:29]} 8. a3 {
[%emt 0:00:05]} Nbd7 {[%emt 0:09:08] B97: Sicilian Najdorf: Poisoned Pawn.} (
8... Qxb2 $2 9. Na4 Qxa1 10. Qxa1 $18) 9. f5 {[%emt 0:00:13] was the old line 
(9.Bh4).} e5 {[%emt 0:10:32]} (9... Qxb2 $2 10. Na4 Qxa1 11. Qxa1 $18) (9...
exf5 $11 10. exf5 Be7) 10. Nb3 $14 {[%emt 0:01:47]} h6 {[%emt 0:05:57] White
is slightly better.} 11. Bh4 {[%emt 0:00:39]} Be7 {[%emt 0:00:35][%cal Yf6e4]}
12. Qe2 {[%emt 0:04:54]} Qc7 {[%emt 0:08:46]} 13. O-O-O {[%emt 0:02:26]} b5 {
[%emt 0:00:19]} 14. g4 {[%emt 0:00:13]} Rb8 {[%emt 0:06:37] [#]} 15. Bxf6 $146
{[%emt 0:21:56]} ({Predecessor:} 15. Bg2 b4 16. axb4 Rxb4 17. Be1 Bb7 18. Kb1
Nc5 19. Nxc5 Qxc5 20. b3 Rd4 21. h4 Rxd1+ 22. Qxd1 {½-½ (51) Bach,W (2174)
-Scharf,W (2023) GER email 2012}) 15... Nxf6 {[%emt 0:03:00]} 16. h4 {[%emt 0:
00:00]} b4 {[%emt 0:06:21]} 17. axb4 {[%emt 0:00:44]} Rxb4 {[%emt 0:00:47]} 18.
Bg2 {[%emt 0:00:57]} Bb7 {[%emt 0:04:31]} 19. g5 {[%emt 0:00:53]} Nd7 {[%emt 0:
00:00]} 20. Qh5 {[%emt 0:10:08][%cal Yf5f6]} a5 {[%emt 0:01:58]} (20... Nc5 $14
{is more appropriate.}) 21. Rh3 $16 {[%emt 0:01:07][%cal Yh1h3,Yh3f3,Yf3f6]} a4
{[%emt 0:05:58]} 22. Nd2 {[%emt 0:00:36]} Bc6 {[%emt 0:13:00]} 23. Bf1 {
[%emt 0:02:41]} Nb6 {[%emt 0:01:50] Against Bc4} 24. f6 {[%emt 0:00:00]} gxf6 {
[%emt 0:02:28]} 25. gxh6 {[%emt 0:02:19]} ({White should try} 25. Rg3 $14 Bf8
26. gxf6) 25... Rh7 $1 $11 {[%emt 0:00:09]} 26. Rf3 {[%emt 0:05:03]} Bf8 {
[%emt 0:02:43]} (26... d5 27. Bd3 Bd7 28. Rg1 $18 (28. Nxd5 Nxd5 29. exd5 Bg4
$11) (28. exd5 Bg4 $11)) 27. Rxf6 {[%emt 0:03:25] Strongly threatening Bh3.}
Qe7 {[%emt 0:00:21]} 28. Qg5 {[%emt 0:11:36] aiming for Bh3.} Nd7 {[%emt 0:00:
17]} 29. Rf3 $36 {[%emt 0:05:16] White has good play.} Bxh6 {[%emt 0:00:39]}
30. Qf5 {[%emt 0:00:06]} Rg7 {[%emt 0:03:05]} (30... Qxh4 $2 31. Rh3 Bxe4 32.
Rxh4 $18) 31. Kb1 {[%emt 0:00:38]} Rd4 {[%emt 0:00:00]} (31... Qxh4 $2 32. Nc4
Qg4 33. Nxd6+ Kf8 34. Bh3 Qxf5 35. Nxf5 $18) 32. Nc4 {[%emt 0:03:11] Black
must now prevent Rxd4.} Rxd1+ {[%emt 0:00:46]} 33. Nxd1 {[%emt 0:00:08]} Rg6 {
[%emt 0:06:31]} (33... Qe6 $11 {remains equal.}) 34. Nc3 $1 $16 {[%emt 0:01:35]
} Rf6 {[%emt 0:01:27]} 35. Qh5 {[%emt 0:03:36] Threatens to win with Na5.
White is more active.} Rxf3 {[%emt 0:00:28]} 36. Qxf3 {[%emt 0:00:02] And now
Na5 would win.} Nc5 {[%emt 0:01:13]} 37. h5 {[%emt 0:02:54]} Kf8 $1 {[%emt 0:
00:11]} 38. Na5 {[%emt 0:01:21]} Bd7 {[%emt 0:00:00][%cal Ya4a3]} 39. Qd1 {
[%emt 0:02:12]} Kg8 {[%emt 0:01:59]} (39... a3 $1 $11 {keeps the balance.}) 40.
Nc4 {[%emt 0:00:50] Pair of Knights!} Bf8 {[%emt 0:00:30] [#]} 41. Nb6 $1 {
[%emt 0:31:49]} Be6 {[%emt 0:10:38]} 42. Bc4 {[%emt 0:00:00]} Bxc4 {[%emt 0:10:
22]} 43. Nxc4 {[%emt 0:00:00]} Qh4 {[%emt 0:00:00] Inhibits Qg4+.} 44. Qf3 {
[%emt 0:00:00]} Qf4 {[%emt 0:00:30]} 45. Qe2 {[%emt 0:00:00]} Kh8 {[%emt 0:04:
41][%cal Yc5e4]} 46. Nb6 {[%emt 0:00:00]} Bh6 {[%emt 0:01:38]} 47. Nbxa4 {
[%emt 0:00:00]} Nxa4 {[%emt 0:01:03]} 48. Nxa4 {[%emt 0:00:00] Endgame Nc3 is
the strong threat. KQB-KQN} d5 {[%emt 0:00:23] [#]} 49. Nc3 {[%emt 0:01:06]} (
49. Nc5 $1 $16) 49... dxe4 $14 {[%emt 0:00:02]} 50. Nxe4 {[%emt 0:00:06]} f5 {
[%emt 0:00:41]} (50... Bg7 $1 $14 {was preferrable.}) 51. Nf6 {[%emt 0:04:46]}
(51. Nd6 $16) 51... Kg7 {[%emt 0:00:00]} (51... Bg5 $11 52. Nd7 e4) 52. Nd5 {
[%emt 0:00:46]} Qc1+ {[%emt 0:00:00]} (52... Qd4 $1 $14 53. Qb5 Qd1+ 54. Ka2
Qxh5) 53. Ka2 $18 {[%emt 0:00:06]} e4 {[%emt 0:00:22]} 54. Qa6 {[%emt 0:02:13]
Threatening mate with Qg6+.} Qg5 {[%emt 0:00:01] Against Qg6+} 55. Qe6 {
[%emt 0:01:04]} e3 $2 {[%emt 0:02:20]} (55... f4 $18 56. Qxe4 Qxh5 57. Nxf4
Bxf4 58. Qxf4 Qc5) 56. Nxe3 {[%emt 0:02:57]} Qxe3 {[%emt 0:00:08]} 57. Qxf5 {
[%emt 0:00:23]} Qe6+ $2 {[%emt 0:00:11] Weighted Error Value: White=0.09 
(flawless) / Black=0.26 (precise) . An unexpected result.} 1/2-1/2

[Event "44th Chess Olympiad Open 2022"]
[Site "Chennai"]
[Date "2022.08.02"]
[Round "5.7"]
[White "Idani, Pouya"]
[Black "Sanal, Vahap"]
[Result "1-0"]
[WhiteElo "2641"]
[BlackElo "2574"]
[Annotator "TA"]
[PlyCount "67"]
[EventDate "2022.??.??"]
[TimeControl "60"]

{[%evp 15,67,12,25,8,24,18,17,22,18,20,29,26,26,8,30,30,21,29,29,33,26,14,37,
35,52,16,62,0,69,60,71,58,99,58,99,93,82,89,150,138,337,347,372,362,474,464,
778,747,2116,-245,2039,1995,29987,29988]} 1. e4 {[%emt 0:00:01]} e5 {[%emt 0:
00:00]} 2. Nf3 {[%emt 0:00:06]} Nc6 {[%emt 0:00:35]} 3. Bb5 {[%emt 0:00:05]
[%cal Yf1b5,Yb5a4,Ya4b3]} a6 {[%emt 0:00:28]} 4. Ba4 {[%emt 0:00:04]} Nf6 {
[%emt 0:00:11]} 5. O-O {[%emt 0:00:06]} Be7 {[%emt 0:00:09]} 6. d3 {[%emt 0:00:
06]} b5 {[%emt 0:01:27]} 7. Bb3 {[%emt 0:00:05]} d6 {[%emt 0:00:08]} 8. c3 {
[%emt 0:00:07]} O-O {[%emt 0:08:51]} 9. a4 {[%emt 0:00:12] White wants to play
axb5.9.h3 is setting a new trend. C84: Closed Ruy Lopez: Unusual White 6th
moves.} Bd7 {[%emt 0:02:37]} 10. Bc2 {[%emt 0:00:07]} Re8 {[%emt 0:00:00]} 11.
Re1 {[%emt 0:00:14] The position is equal.} Bf8 {[%emt 0:00:49]} 12. Bg5 {
[%emt 0:00:13] [#]} Rb8 $146 {[%emt 0:05:05]} ({Predecessor:} 12... h6 13. Bh4
Be7 14. Nbd2 Nh5 15. axb5 axb5 16. Rxa8 Qxa8 17. Bxe7 Rxe7 18. d4 Nf6 {½-½ 
(42) Anand,V (2776)-Tomashevsky,E (2731) Moscow 2016}) 13. Nbd2 {[%emt 0:00:00]
[%cal Yb1d2,Yd2f1,Yf1e3]} h6 {[%emt 0:04:39]} 14. Bh4 {[%emt 0:00:00]} g5 {
[%emt 0:04:46]} 15. Bg3 {[%emt 0:00:05]} Ne7 {[%emt 0:04:19][%cal Yc6e7,Ye7g6,
Yg6f4]} 16. axb5 {[%emt 0:01:34]} axb5 {[%emt 0:00:31]} 17. Nf1 {[%emt 0:21:25]
} Ng6 {[%emt 0:01:54]} 18. Ne3 {[%emt 0:00:06]} Nf4 {[%emt 0:03:45]} 19. d4 {
[%emt 0:01:15][%cal Yd3d4,Yd4d5]} N6h5 {[%emt 0:14:15]} 20. h3 {[%emt 0:07:39]}
Qc8 {[%emt 0:16:21]} (20... Bg7 $11) 21. Nh2 {[%emt 0:06:51]} (21. h4 $14)
21... Bg7 {[%emt 0:05:18]} (21... exd4 $1 $11 22. cxd4 Bg7) 22. Bxf4 $14 {
[%emt 0:02:16]} Nxf4 {[%emt 0:01:38]} 23. d5 $1 {[%emt 0:02:56]} Ra8 {[%emt 0:
09:56]} 24. Rb1 {[%emt 0:04:24]} f6 {[%emt 0:00:00]} 25. g3 {[%emt 0:04:40]} (
25. Nhf1 {is interesting.} Kf7 26. Ng3 Rh8 27. Ngf5) 25... Ng6 {[%emt 0:00:08]
[#]} 26. Qh5 $1 {[%emt 0:02:21]} Ne7 {[%emt 0:00:00]} (26... Kh7 $142) 27. Nhg4
$16 {[%emt 0:09:12] White is more active.} Kh7 $2 {[%emt 0:00:31] [#]} (27...
Rf8 $16) 28. Nxf6+ $1 $18 {[%emt 0:04:03]} Bxf6 {[%emt 0:00:40]} (28... Kh8 29.
h4) 29. Qf7+ {[%emt 0:00:05]} Bg7 {[%emt 0:03:23][%cal Ye8f8] Strongly
threatening ...Rf8!} 30. Nf5 {[%emt 0:00:00]} Nxf5 {[%emt 0:04:13]} (30... Bxf5
$2 31. exf5 Nxf5 32. Bxf5+ Kh8 33. Bxc8) (30... Rg8 $142 31. Nxe7 Qf8 32. Qxg8+
Qxg8) 31. exf5 {[%emt 0:00:08][%cal Ye4f5,Yf5f6] Intending f6+ and mate.} Rg8 {
[%emt 0:00:23]} 32. Qg6+ {[%emt 0:00:19]} Kh8 {[%emt 0:00:01] aiming for ...
Be8.} 33. f6 {[%emt 0:00:00][%csl Gc2][%cal Rg6h7]} e4 {[%emt 0:00:12]} 34.
Bxe4 {[%emt 0:00:07] Weighted Error Value: White=0.04 (flawless) /Black=0.53}
1-0

[Event "44th Chess Olympiad Open 2022"]
[Site "Chennai"]
[Date "2022.08.02"]
[Round "5.7"]
[White "Can, Emre"]
[Black "Tabatabaei, M. Amin"]
[Result "1/2-1/2"]
[WhiteElo "2606"]
[BlackElo "2664"]
[Annotator "TA"]
[PlyCount "95"]
[EventDate "2022.??.??"]
[TimeControl "60"]

{[%evp 14,95,12,0,29,25,22,30,23,34,32,29,42,17,43,49,47,46,66,63,65,56,64,60,
61,64,74,65,80,66,90,85,149,141,177,165,164,119,218,223,224,213,228,208,222,
212,215,213,272,291,285,300,533,518,460,344,488,183,245,235,250,179,234,227,
214,11,72,0,0,0,0,-8,0,0,0,0,0,0,0,0,0,0,0,0]} 1. d4 {[%emt 0:00:05]} Nf6 {
[%emt 0:00:15]} 2. c4 {[%emt 0:00:25]} e6 {[%emt 0:00:10]} 3. g3 {[%emt 0:00:
00]} Bb4+ {[%emt 0:00:48]} 4. Nd2 {[%emt 0:00:32]} O-O {[%emt 0:00:27]} 5. Bg2
{[%emt 0:01:01]} d5 {[%emt 0:00:12]} 6. Ngf3 {[%emt 0:00:28]} b6 {[%emt 0:00:
00]} 7. O-O {[%emt 0:00:59]} Bb7 {[%emt 0:00:12]} 8. Ne5 {[%emt 0:00:47]} h6 {
[%emt 0:01:16] 8...a5 is becoming the main line. E16: Queen's Indian: 4 g3 Bb7
5 Bg2 Bb4+.} 9. Qc2 {[%emt 0:03:44] [#]} Bd6 $146 {[%emt 0:15:02]} ({
Predecessor:} 9... Be7 10. cxd5 exd5 11. b3 c5 12. Bb2 Na6 13. Rac1 Qc8 14.
Rfd1 Qe6 15. Nd3 Nb4 16. Qb1 Nxd3 17. exd3 {½-½ (25) Ivanchuk,V (2741)
-Eljanov,P (2751) Astrakhan 2010}) 10. cxd5 {[%emt 0:03:37]} exd5 {[%emt 0:00:
00] White has an edge.} 11. Ndc4 {[%emt 0:00:13]} Re8 {[%emt 0:02:00]} 12. b3 {
[%emt 0:11:03]} Na6 {[%emt 0:13:34]} 13. Bb2 {[%emt 0:11:37]} Ne4 {[%emt 0:00:
00] Threatens to win with ...Nb4.} 14. Nxd6 {[%emt 0:04:00]} cxd6 {[%emt 0:00:
00]} 15. Nd3 {[%emt 0:00:21]} Rc8 {[%emt 0:02:04]} 16. Qd1 {[%emt 0:00:12]} Qd7
{[%emt 0:02:20]} 17. Rc1 {[%emt 0:05:03]} Nc7 {[%emt 0:00:09]} 18. f3 {[%emt 0:
00:00]} Nf6 {[%emt 0:00:36]} 19. Qd2 {[%emt 0:00:22]} Re7 {[%emt 0:01:54]} 20.
Rfe1 {[%emt 0:03:44]} Rce8 {[%emt 0:02:02]} 21. a4 {[%emt 0:02:29]} Ba6 {
[%emt 0:04:40]} 22. e3 {[%emt 0:00:23]} g5 {[%emt 0:04:07]} (22... Rc8 $142)
23. Nf2 $1 $16 {[%emt 0:00:48]} Bb7 {[%emt 0:01:05]} 24. Bh3 {[%emt 0:06:46]}
Qd8 {[%emt 0:00:35]} 25. Qc3 {[%emt 0:01:07]} Bc8 {[%emt 0:00:59]} (25... Ne6
$16 26. Qd2 Rc7) 26. Bxc8 $1 $18 {[%emt 0:04:26]} Qxc8 {[%emt 0:00:05] [#]} 27.
e4 {[%emt 0:00:08] Against Qf5} Qb7 {[%emt 0:22:16][%cal Rd5e4]} 28. e5 {
[%emt 0:08:09]} dxe5 {[%emt 0:00:06]} 29. dxe5 {[%emt 0:00:10]} d4 {[%emt 0:00:
00]} 30. Qd3 {[%emt 0:11:32]} (30. Qxd4 $6 Qxf3 31. Rf1 Ne6 $16) 30... Nd7 {
[%emt 0:03:56]} 31. Ng4 {[%emt 0:01:55]} (31. Bxd4 Ne6 $16) 31... Re6 {[%emt 0:
00:00]} 32. Qxd4 {[%emt 0:01:44]} ({Don't take} 32. Bxd4 Nd5 $18) 32... Na6 $2
{[%emt 0:01:35]} (32... Nc5 {was called for.} 33. Nf6+ Rxf6) 33. f4 {[%emt 0:
00:00]} f5 {[%emt 0:05:21]} 34. Ne3 {[%emt 0:06:23]} gxf4 {[%emt 0:00:57]} (
34... Ndc5 $142 35. Qc4 (35. Nxf5 Nxb3 36. Qc3 Nxc1 $16) 35... Qe4 36. Qxe4
fxe4) 35. gxf4 $2 {[%emt 0:01:08]} ({Less strong is} 35. Qxf4 Nxe5 36. Bxe5
Rxe5 $18) (35. Nxf5 Ndc5 36. Nd6) 35... Nac5 {[%emt 0:01:45]} (35... Ndc5 $142)
36. Nxf5 {[%emt 0:02:09]} Nxb3 {[%emt 0:00:36] [#]} 37. Qc3 {[%emt 0:01:30]
Threatening mate with Qg3+.} Rg6+ {[%emt 0:01:07]} 38. Ng3 {[%emt 0:00:01]}
Nxc1 {[%emt 0:00:08] [#]} 39. Rxc1 $2 {[%emt 0:01:00]} (39. e6 $1 $18 {[%csl
Gb2][%cal Rc3h8]} Nf6 40. f5) 39... Qd5 {[%emt 0:04:33]} (39... Qe4 $11) 40.
Qc2 {[%emt 0:01:30]} (40. f5 $16 Rg4 41. e6 Qc5+ 42. Kg2 Qxc3 43. Rxc3) 40...
Rg4 $11 {[%emt 0:05:55] aiming for ...Qc5+. The position is equal.} 41. Qf5 {
[%emt 0:07:40]} Rg7 {[%emt 0:01:09] Strongly threatening ...Nc5.} 42. Qh5 {
[%emt 0:03:02]} Nf6 {[%emt 0:15:03]} 43. Qxh6 {[%emt 0:01:35]} Qd3 {[%emt 0:00:
00]} 44. exf6 {[%emt 0:05:59][%csl Gb2,Gf6][%cal Rh6g7] Really sharp!} Rxg3+ {
[%emt 0:00:25]} 45. hxg3 {[%emt 0:00:06]} Qxg3+ {[%emt 0:00:03]} 46. Kh1 {
[%emt 0:00:29][%cal Yf6f7] Intending f7+! and mate.} Qf3+ {[%emt 0:00:06]} 47.
Kg1 {[%emt 0:00:08][%csl Gb2,Gf6][%cal Rh6g7]} Qg3+ {[%emt 0:00:03]} 48. Kh1 {
[%emt 0:00:04] Black escapes into a draw. Weighted Error Value: White=0.29 
(precise) /Black=0.27 (precise)} 1/2-1/2

[Event "44th Chess Olympiad Open 2022"]
[Site "Chennai"]
[Date "2022.08.02"]
[Round "5.7"]
[White "Ali Marandi, Cemil Can"]
[Black "Daneshvar, Bardiya"]
[Result "0-1"]
[WhiteElo "2561"]
[BlackElo "2490"]
[Annotator "TA"]
[PlyCount "146"]
[EventDate "2022.??.??"]
[TimeControl "60"]

{[%evp 12,146,37,31,40,39,38,31,38,34,64,63,66,36,36,36,36,36,39,34,41,0,19,16,
16,8,11,0,0,0,0,0,-1,0,0,0,7,-10,0,0,0,-18,-13,-30,-10,-33,-38,-45,-33,-33,-36,
-50,-18,-12,-17,-50,-46,-62,-10,-62,-62,-62,-62,-62,-62,-77,-69,-69,-62,-69,
-69,-69,-69,-69,-69,-69,-64,-77,-43,-74,-74,-81,-73,-77,-84,-183,-204,-198,
-189,-163,-142,-144,-116,-102,-70,-146,-72,-85,-50,-114,-104,-1575,-1612,-1647,
-1647,-2508,-2508,-29959,-29961,-29973,-29974,-29974,-239,-212,0,-29962,-29963,
-29964,-29965,-29963,-29964,-29966,-29966,-29966,-29962,-29973,-29974,-29978,
-29979,-29979,-29980,-29984,-29985,-29985,-29986,-29991,-29992]} 1. d4 {
[%emt 0:00:03]} d5 {[%emt 0:00:22]} 2. Nf3 {[%emt 0:00:08]} Nf6 {[%emt 0:00:06]
} 3. Bf4 {[%emt 0:00:07]} c5 {[%emt 0:00:14]} 4. e3 {[%emt 0:00:08]} Nc6 {
[%emt 0:00:05]} 5. Nbd2 {[%emt 0:00:08]} cxd4 {[%emt 0:01:14]} 6. exd4 {
[%emt 0:00:09]} Bg4 {[%emt 0:02:03]} 7. c3 {[%emt 0:00:38]} a6 {[%emt 0:02:52]
B13: Caro-Kann: Exchange Variation and Panov-Botvinnik Attack.} 8. Qb3 {
[%emt 0:01:44]} Na5 {[%emt 0:04:13]} 9. Qc2 {[%emt 0:00:23]} Bxf3 {[%emt 0:00:
00] White is slightly better.} 10. Nxf3 {[%emt 0:00:11] [#]} g6 $146 {[%emt 0:
00:00]} ({Predecessor:} 10... e6 11. Bd3 Bd6 12. Ne5 O-O 13. O-O Rc8 14. Rae1
Nc6 15. Qe2 Re8 16. Qf3 Bxe5 17. dxe5 {1-0 (35) Vachier Lagrave,M (2751)
-Musovic,A (2282) Chess.com INT 2021}) 11. Bd3 {[%emt 0:02:38]} Bg7 {[%emt 0:
00:00]} 12. h3 {[%emt 0:00:20]} Rc8 {[%emt 0:02:39]} 13. O-O {[%emt 0:01:01]}
O-O {[%emt 0:00:36]} 14. Rfe1 {[%emt 0:00:25]} e6 {[%emt 0:02:05]} 15. Rad1 {
[%emt 0:06:31]} Nc4 {[%emt 0:03:40]} 16. Bxc4 {[%emt 0:05:02]} Rxc4 {[%emt 0:
00:00]} 17. Ne5 {[%emt 0:00:14]} Rc8 {[%emt 0:01:31]} 18. Qc1 {[%emt 0:02:42]}
Ne4 {[%emt 0:04:07]} 19. f3 {[%emt 0:25:19]} Nd6 {[%emt 0:01:31]} 20. Bh6 {
[%emt 0:00:16]} Nf5 {[%emt 0:03:30]} 21. Bxg7 {[%emt 0:01:00]} Kxg7 {[%emt 0:
00:00]} 22. Qf4 {[%emt 0:01:40]} h5 {[%emt 0:12:49]} 23. g4 {[%emt 0:09:19]} g5
{[%emt 0:08:14]} 24. Qd2 {[%emt 0:02:21]} (24. Qh2 {looks sharper.} hxg4 25.
hxg4 Rh8 26. Qf2) 24... hxg4 {[%emt 0:02:35]} 25. fxg4 {[%emt 0:06:15]} Nd6 {
[%emt 0:03:21]} 26. Nd3 {[%emt 0:00:34]} Ne4 {[%emt 0:02:04]} 27. Qh2 {[%emt 0:
00:00]} Qc7 {[%emt 0:02:50]} 28. Qxc7 {[%emt 0:06:29]} Rxc7 {[%emt 0:00:05]}
29. Kg2 {[%emt 0:10:53]} Rh8 {[%emt 0:01:33]} 30. Rf1 {[%emt 0:00:24]} Rh6 {
[%emt 0:01:11]} 31. Rde1 {[%emt 0:00:38]} Rf6 {[%emt 0:02:01]} (31... a5 {
is interesting.} 32. a4 Rf6 33. Rh1 Rc4) 32. Rxf6 {[%emt 0:01:07]} Kxf6 $11 {
[%emt 0:00:41] Endgame KRN-KRN} 33. Nf2 {[%emt 0:01:21]} Nd6 {[%emt 0:02:27]}
34. Nd3 {[%emt 0:00:15]} b6 {[%emt 0:01:13]} (34... Rc8 $15) 35. Nf2 {[%emt 0:
01:11]} ({White should try} 35. Rh1 $11) 35... Rc8 {[%emt 0:00:00]} 36. Kg3 {
[%emt 0:00:27]} Rh8 {[%emt 0:01:51]} 37. Kg2 {[%emt 0:02:14]} Ke7 {[%emt 0:00:
31]} 38. Re2 {[%emt 0:01:00]} f6 {[%emt 0:01:20]} 39. Re1 {[%emt 0:00:33]} Kd7
{[%emt 0:00:56]} 40. Re2 {[%emt 0:00:59]} a5 {[%emt 0:00:00]} 41. a3 {[%emt 0:
34:47]} Ke7 {[%emt 0:33:17]} 42. Re1 {[%emt 0:02:29]} Nc4 {[%emt 0:01:25]} 43.
Re2 {[%emt 0:00:28]} Kd6 {[%emt 0:02:08]} 44. Nd1 {[%emt 0:00:00]} e5 {[%emt 0:
00:00]} 45. Rf2 {[%emt 0:00:00]} Ke6 {[%emt 0:00:00]} 46. a4 {[%emt 0:00:00]}
Rb8 {[%emt 0:00:00]} 47. Re2 {[%emt 0:00:00]} b5 {[%emt 0:00:00]} 48. axb5 {
[%emt 0:00:00]} (48. b3 $17 Nd6 49. axb5) 48... Rxb5 $19 {[%emt 0:00:00]} 49.
h4 {[%emt 0:00:00]} gxh4 {[%emt 0:00:00]} 50. Kh3 {[%emt 0:00:00]} e4 {[%emt 0:
00:00]} 51. Kxh4 {[%emt 0:00:00]} a4 {[%emt 0:00:00] Threatens to win with ...
Rb8.} 52. Kg3 {[%emt 0:00:00]} Rb3 {[%emt 0:00:00]} 53. Rc2 {[%emt 0:00:00] [#]
} (53. Kf4 $15) 53... a3 {[%emt 0:00:00] Black is more active.} (53... f5 $142
$1 {aiming for ...fxg4.} 54. gxf5+ Kxf5) 54. bxa3 $17 {[%emt 0:00:00]} Rxa3 {
[%emt 0:00:00] White must now prevent ...Ra1.} 55. Re2 {[%emt 0:01:19]} (55.
Nf2 $15) 55... Ra1 {[%emt 0:00:00]} 56. Ne3 {[%emt 0:00:00]} (56. Nb2 $17)
56... Nxe3 $19 {[%emt 0:00:02]} 57. Rxe3 {[%emt 0:00:02] KR-KR} f5 {[%emt 0:01:
18]} 58. gxf5+ {[%emt 0:05:15]} Kxf5 {[%emt 0:00:13] Hoping for ...Rc1.} 59.
Re2 {[%emt 0:01:22]} Rc1 {[%emt 0:02:10]} 60. Rh2 {[%emt 0:02:26]} Rxc3+ {
[%emt 0:00:09]} 61. Kf2 {[%emt 0:00:05]} Rc2+ $2 {[%emt 0:00:11]} (61... e3+ {
mates} 62. Kf3 e2+ 63. Kf2 Ke4 64. Rh4+ Kd3 65. Rh1 Rc2 66. Kg3 Kxd4 67. Kf4
Kd3 68. Rg1 d4 69. Rh1 Kd2 70. Rh2 d3 71. Rg2 Kc3 72. Rg1 d2 73. Rg5 e1=Q 74.
Rg8 Qf2+ 75. Ke5 Qc5+ 76. Kf6 d1=Q 77. Rg3+ Kd4 78. Rh3 Qf8+ 79. Kg5 Qg7+ 80.
Kh4 Qgg4#) 62. Ke3 {[%emt 0:00:05] [#]} Rc3+ $2 {[%emt 0:00:15]} ({Black
should play} 62... Rc1 $1 $19 {[%cal Rc1c3] ( -> ... Rc3+)} 63. Rh5+ Ke6 64.
Rh6+ Kd7) 63. Ke2 $2 {[%emt 0:00:30]} (63. Kf2 $11 Rf3+ 64. Kg2) 63... Rd3 {
[%emt 0:00:33] Black mates.} 64. Rh5+ {[%emt 0:00:21]} Ke6 {[%emt 0:00:05]} 65.
Rh6+ {[%emt 0:00:05]} Kd7 {[%emt 0:00:00]} 66. Rg6 {[%emt 0:00:38]} Rxd4 {
[%emt 0:00:11]} 67. Ke3 {[%emt 0:00:03]} Rd3+ {[%emt 0:00:07]} 68. Kf4 {
[%emt 0:00:05]} e3 {[%emt 0:00:59]} 69. Rg3 {[%emt 0:00:16]} d4 {[%emt 0:00:08]
} 70. Ke4 {[%emt 0:00:30]} Rd2 {[%emt 0:00:00]} 71. Kd5 {[%emt 0:00:16]} e2 {
[%emt 0:00:35]} 72. Rg7+ {[%emt 0:00:05]} Ke8 {[%emt 0:00:05]} 73. Ke6 {
[%emt 0:00:05]} e1=Q+ {[%emt 0:00:13] Weighted Error Value: White=0.43/Black=0.
09 (flawless)} 0-1

[Event "44th Chess Olympiad Open 2022"]
[Site "Chennai"]
[Date "2022.08.02"]
[Round "5.8"]
[White "Abdusattorov, Nodirbek"]
[Black "Pechac, Jergus"]
[Result "1-0"]
[WhiteElo "2688"]
[BlackElo "2594"]
[Annotator "TA"]
[PlyCount "53"]
[EventDate "2022.??.??"]
[TimeControl "60"]

{[%evp 11,53,25,27,22,22,23,25,20,29,28,45,13,22,0,0,-16,33,25,29,16,19,26,46,
7,14,22,20,0,23,18,50,-6,32,38,92,84,201,173,175,160,165,164,165,164]} 1. e4 {
[%emt 0:00:33]} e5 {[%emt 0:00:09]} 2. Nf3 {[%emt 0:00:12]} Nc6 {[%emt 0:00:06]
} 3. Bb5 {[%emt 0:00:23]} Nge7 {[%emt 0:00:09]} 4. O-O {[%emt 0:00:32]} g6 {
[%emt 0:00:14]} 5. d4 {[%emt 0:09:20]} exd4 {[%emt 0:00:09]} 6. Nxd4 {[%emt 0:
00:00]} Bg7 {[%emt 0:00:06]} 7. Nxc6 {[%emt 0:00:38] C60: Ruy Lopez: Unusual
Black 3rd moves and 3...g6.} bxc6 {[%emt 0:00:08]} 8. Ba4 {[%emt 0:00:13]} O-O
{[%emt 0:00:06]} 9. Nc3 {[%emt 0:00:04] White has an edge.} Rb8 {[%emt 0:00:05]
} 10. Re1 {[%emt 0:02:03]} d6 {[%emt 0:05:24]} 11. Bb3 {[%emt 0:03:24]} Be6 {
[%emt 0:04:08] [#]} 12. Ne2 $146 {[%emt 0:06:22]} ({Predecessor:} 12. Bg5 h6
13. Bh4 g5 14. Bg3 Ng6 15. Qd3 Qc8 16. Rab1 Re8 17. Ne2 c5 18. Nc3 {½-½ (24)
German,N (2106)-Poleg,D (2321) Khanty-Mansiysk 2016}) 12... c5 {[%emt 0:07:33]}
13. Nf4 {[%emt 0:00:07]} Bxb3 {[%emt 0:00:24]} (13... Bd7 $11 {should be
considered.}) 14. axb3 $14 {[%emt 0:00:08]} Nc6 {[%emt 0:00:10]} 15. c3 {
[%emt 0:03:48]} a5 {[%emt 0:01:38]} 16. Nd5 {[%emt 0:03:36][%cal Yf4d5,Yd5e3,
Ye3c4,Yc4d6,Yd6c4]} Ra8 {[%emt 0:08:51]} 17. Ra4 {[%emt 0:05:46]} Ne5 {[%emt 0:
08:04]} 18. Bf4 {[%emt 0:01:46]} Re8 {[%emt 0:07:10]} 19. Bxe5 {[%emt 0:03:59]}
Bxe5 {[%emt 0:01:01]} 20. Ne3 {[%emt 0:01:14]} Qb8 {[%emt 0:00:00]} ({Don't
take} 20... Qh4 21. g3 Qd8 22. Qd5 $16) 21. Qc2 {[%emt 0:01:41]} (21. Nc4 $14)
21... c6 {[%emt 0:07:06][%cal Yd6d5]} 22. g3 {[%emt 0:01:25]} Qb5 {[%emt 0:02:
36]} (22... Bg7 $14) 23. Nc4 $16 {[%emt 0:01:31] [#] And now f4 would win.}
Reb8 {[%emt 0:00:35]} (23... Rad8 $16) 24. f4 {[%emt 0:00:18] White is clearly
better.} Bf6 {[%emt 0:00:29]} 25. Nxd6 {[%emt 0:00:07]} Qxb3 {[%emt 0:00:12]}
26. Qxb3 {[%emt 0:00:32]} Rxb3 {[%emt 0:00:07] [#]} 27. Nc4 $1 {[%emt 0:00:56]
Weighted Error Value: White=0.14 (very precise) /Black=0.18 (very precise)} 1-0